bitfinex-derivatives/quotes_SOLF0:USTF0_20250518
["timestamp","ask_amount","ask_price","bid_price","bid_amount"]
[1747592451569,113.18,170.01,169.88,1.17730162]
[1747592452073,25.90299064,169.98,169.88,1.17730162]
[1747592452273,112.56,169.97,169.88,1.17730162]
[1747592452466,5.8837,169.91,169.88,1.17730162]
[1747592452765,112.56,169.97,169.89,1.17723232]
[1747592452965,5.8838,169.91,169.85,5.8854]
[1747592453173,112.56,169.97,169.81,113.18]
[1747592454576,5.8828,169.93,169.88,5.8845]
[1747592454768,112.56,169.97,169.81,113.18]
[1747592455170,5.8832,169.92,169.82,1.17771758]
[1747592455370,112.56,169.97,169.82,1.17771758]
[1747592455774,5.8836,169.91,169.86,5.885]
[1747592455975,112.56,169.97,169.82,1.17771758]
[1747592456174,5.8825,169.94,169.9,5.8837]
[1747592456365,25.90299064,170.0,169.82,1.17771758]
[1747592456567,112.46,169.99,169.82,1.17771758]
[1747592456776,5.8822,169.95,169.82,1.17771758]
[1747592457078,112.44,169.99,169.82,1.17771758]
[1747592458378,5.8824,169.94,169.88,5.8842]
[1747592458680,1.8758,169.98,169.82,1.17771758]
[1747592458873,5.8841,169.9,169.83,112.48]
[1747592459071,1.8758,169.98,169.83,112.48]
[1747592460476,1.8758,169.98,169.84,1.9151]
[1747592460881,5.8826,169.94,169.88,5.8844]
[1747592461181,25.90299064,169.96,169.82,1.17771758]
[1747592461372,5.8854,169.86,169.82,1.17771758]
[1747592461572,112.32,169.9,169.82,1.17771758]
[1747592461771,1.9417,169.89,169.82,1.17771758]
[1747592461979,5.8851,169.87,169.82,7.06401758]
[1747592462284,1.9417,169.89,169.82,1.17771758]
[1747592462480,1.9417,169.89,169.84,5.8858]
[1747592462673,112.28,169.9,169.82,1.17771758]
[1747592462979,5.8845,169.88,169.83,5.8859]
[1747592463174,112.28,169.9,169.82,1.17771758]
[1747592463776,2.0031,169.94,169.82,1.17771758]
[1747592464079,112.24,170.0,169.83,27.74459064]
[1747592464377,112.24,170.0,169.84,1.8998]
[1747592464580,115.6743,170.02,169.91,5.8832]
[1747592464778,138.14299064,170.01,169.85,114.4634]
[1747592465679,5.8837,169.91,169.85,120.3486]
[1747592465885,112.22,169.95,169.85,114.4634]
[1747592466686,25.90299064,169.99,169.85,114.4634]
[1747592466980,25.90299064,169.99,169.85,1.9634]
[1747592467182,25.90299064,169.94,169.83,1.8416]
[1747592467483,114.1805,169.93,169.82,1.17771758]
[1747592467983,5.8843,169.89,169.84,5.8858]
[1747592468176,1.1704,169.92,169.82,1.17771758]
[1747592468484,5.8862,169.84,169.82,1.17771758]
[1747592468684,25.90299064,169.9,169.7,520.2614]
[1747592468685,112.12,169.86,169.73,112.5]
[1747592468986,5.8859,169.84,169.74,1.17827265]
[1747592469478,118.0052,169.86,169.8,5.887]
[1747592469779,112.12,169.86,169.74,1.17827265]
[1747592470177,4.77709937,169.85,169.74,1.17827265]
[1747592470670,4.77709937,169.85,169.75,112.5]
[1747592470877,4.77709937,169.85,169.77,25.90299064]
[1747592471184,5.1286018,169.91,169.77,25.90299064]
[1747592471681,5.1286018,169.91,169.81,25.90299064]
[1747592471885,5.1286018,169.91,169.82,226.5087]
[1747592472383,5.1286018,169.91,169.82,1.9487]
[1747592473980,5.1286018,169.97,169.82,1.9487]
[1747592474278,5.1286018,169.97,169.83,25.90299064]
[1747592474878,5.1286018,169.97,169.84,224.46]
[1747592475083,5.1286018,169.97,169.91,5.8831]
[1747592475280,5.1286018,169.97,169.84,224.46]
[1747592475681,5.1286018,169.97,169.87,25.90299064]
[1747592475886,1.8e-06,169.97,169.87,25.90299064]
[1747592476287,1.8e-06,169.97,169.96,5.8817]
[1747592476986,1.8e-06,169.97,169.96,7.7837]
[1747592477489,5.8784,170.06,169.96,1.902]
[1747592477680,2.70381814,170.05,169.96,1.902]
[1747592477881,1.8809,170.07,169.96,1.902]
[1747592478082,2.70407966,170.06,169.96,1.902]
[1747592478388,6.83813573,170.1,169.96,1.902]
[1747592478582,2.70449686,170.09,169.96,1.902]
[1747592478785,2.70449686,170.08,169.96,114.362]
[1747592478985,2.70449686,170.07,169.96,114.362]
[1747592479186,5.8787,170.05,169.96,114.362]
[1747592479386,2.70449686,170.04,169.96,114.362]
[1747592479589,2.70449686,170.04,169.98,5.8809]
[1747592479780,2.70449686,170.03,169.91,620.9]
[1747592479984,2.70449686,170.02,169.91,620.9]
[1747592480181,111.76,170.05,169.91,620.9]
[1747592480486,2.70501668,170.04,170.0,5.8801]
[1747592480685,2.70501668,170.03,170.0,5.8801]
[1747592480990,2.70501668,170.02,170.0,5.8801]
[1747592481190,111.76,170.05,170.0,5.8801]
[1747592481380,111.76,170.05,169.91,620.9]
[1747592482200,2.70611803,170.04,169.91,508.44]
[1747592482488,2.70611803,170.03,169.91,508.44]
[1747592482688,2.70611803,170.02,169.95,5.8818]
[1747592482891,1.9029,170.03,169.91,508.44]
[1747592483096,2.70579096,170.02,169.91,508.44]
[1747592483290,2.70515975,170.01,169.91,508.44]
[1747592483489,2.70542915,170.0,169.9,112.46]
[1747592483690,5.8827,169.94,169.84,112.46]
[1747592483988,224.08,169.99,169.84,112.46]
[1747592484189,2.7022686,169.98,169.91,5.8832]
[1747592484492,228.83773061,169.99,169.84,112.46]
[1747592484686,5.8816,169.97,169.84,112.46]
[1747592484883,228.83773061,169.99,169.84,112.46]
[1747592485088,2.70275891,169.98,169.84,112.46]
[1747592485288,5.8822,169.95,169.91,5.8834]
[1747592485489,4.75773061,169.97,169.84,112.46]
[1747592485889,4.75773061,169.97,169.96,5.8817]
[1747592487097,4.75773061,169.97,169.91,1.9972]
[1747592487395,4.75773061,170.01,169.91,1.9972]
[1747592487788,4.75773061,170.01,169.92,4.052]
[1747592488986,4.75773061,170.01,170.0,5.8803]
[1747592489188,4.75773061,170.06,170.0,5.8803]
[1747592489596,10.63613061,170.06,170.0,5.8803]
[1747592489791,4.75773061,170.06,169.97,111.56]
[1747592490193,5.8797,170.02,169.97,111.56]
[1747592490399,4.75773061,170.06,169.92,227.012]
[1747592490696,5.8793,170.03,169.92,227.012]
[1747592490903,5.8793,170.03,169.97,5.8811]
[1747592491097,137.34299064,170.1,169.92,227.012]
[1747592491302,5.8789,170.05,169.92,227.012]
[1747592491498,137.34299064,170.1,169.92,227.012]
[1747592491797,5.8783,170.06,170.0,5.8802]
[1747592491997,137.34299064,170.1,169.92,227.012]
[1747592492190,4.75597484,170.05,169.92,227.012]
[1747592492696,4.75597484,170.05,169.93,111.54]
[1747592493401,5.8791,170.04,169.98,5.881]
[1747592493597,4.75597484,170.05,169.93,111.54]
[1747592493795,4.75597484,170.04,169.93,111.54]
[1747592494502,5.8797,170.02,169.93,111.54]
[1747592494700,111.22,170.03,169.92,4.052]
[1747592495006,28.6089491,170.02,169.91,1.9972]
[1747592495202,5.8808,169.99,169.94,5.8822]
[1747592495499,30.65896548,170.02,169.91,1.9972]
[1747592495694,4.66481864,170.01,169.93,5.8827]
[1747592495899,1.9592,170.01,169.91,1.9972]
[1747592496198,1.9592,170.01,169.88,111.54]
[1747592496397,2.70535665,170.0,169.92,5.8828]
[1747592496599,4.75597484,170.0,169.88,111.54]
[1747592497100,25.90299064,169.98,169.85,1.8931]
[1747592497299,225.38448715,169.97,169.85,1.8931]
[1747592497496,2.70448715,169.96,169.87,5.8847]
[1747592497803,4.75597484,169.95,169.82,619.72]
[1747592498203,25.90299064,169.94,169.82,619.72]
[1747592498597,2.7035589,169.93,169.81,1.9879]
[1747592498904,25.90299064,169.9,169.8,1.8634]
[1747592499201,111.08,169.89,169.8,1.8634]
[1747592499395,111.08,169.89,169.77,111.54]
[1747592499593,111.08,169.89,169.74,5.8891]
[1747592499594,5.8874,169.8,169.74,5.8891]
[1747592499797,111.04,169.81,169.7,10.8992222]
[1747592500002,111.04,169.81,169.66,29.47113038]
[1747592500202,111.04,169.81,169.77,5.888]
[1747592500405,111.04,169.81,169.72,111.56]
[1747592500702,111.04,169.81,169.73,1.9252]
[1747592501398,25.74623038,169.88,169.73,1.9252]
[1747592501399,5.8857,169.85,169.73,1.9252]
[1747592501599,111.02,169.86,169.73,1.9252]
[1747592502001,5.8887,169.76,169.66,115.2849]
[1747592502200,5.8887,169.76,169.67,1.9252]
[1747592502402,110.98,169.79,169.67,1.9252]
[1747592504100,110.98,169.79,169.73,5.8895]
[1747592504301,110.98,169.79,169.67,1.9252]
[1747592505409,5.888,169.78,169.71,5.8902]
[1747592505605,110.98,169.79,169.71,5.8902]
[1747592506007,5.888,169.78,169.71,5.8902]
[1747592506213,110.98,169.79,169.71,5.8902]
[1747592506512,110.98,169.79,169.67,1.9252]
[1747592506513,110.98,169.79,169.72,5.8899]
[1747592506714,110.98,169.79,169.67,1.9252]
[1747592506909,111.56,169.81,169.67,112.7852]
[1747592507106,25.74623038,169.87,169.68,25.74623038]
[1747592507306,508.34,169.85,169.68,25.74623038]
[1747592507502,110.84,169.86,169.68,25.74623038]
[1747592508111,111.62,169.88,169.68,37.52893038]
[1747592508311,222.44,169.88,169.68,11.7827]
[1747592508513,222.44,169.88,169.67,1.9252]
[1747592508711,222.44,169.88,169.69,222.44]
[1747592509110,25.74623038,169.87,169.79,5.8873]
[1747592509315,25.74623038,169.87,169.69,222.44]
[1747592510010,3.9335,169.91,169.69,222.44]
[1747592510213,29.67973038,169.91,169.85,5.8855]
[1747592510415,114.6735,169.91,169.85,5.8855]
[1747592510615,114.6735,169.91,169.78,111.64]
[1747592510814,5.8839,169.9,169.85,5.8854]
[1747592511114,114.6735,169.91,169.85,5.8854]
[1747592511418,114.6735,169.91,169.79,5.8611]
[1747592512005,25.74623038,169.9,169.78,111.64]
[1747592513219,5.8848,169.88,169.83,5.8862]
[1747592513420,111.62,169.88,169.78,111.64]
[1747592513920,2.0426,169.91,169.78,111.64]
[1747592514219,112.6426,169.91,169.78,111.64]
[1747592514523,111.62,169.93,169.78,222.22]
[1747592516323,111.62,169.93,169.78,111.64]
[1747592517121,222.1,169.93,169.78,111.64]
[1747592517512,1.9616,169.98,169.79,25.74623038]
[1747592517721,6.83813573,170.08,169.83,25.74623038]
[1747592517927,6.83813573,170.08,169.91,25.74623038]
[1747592518226,6.83813573,170.08,169.92,220.96]
[1747592518724,6.83813573,170.08,169.93,1.9783]
[1747592518920,5.878,170.07,169.93,1.9783]
[1747592519128,117.23813573,170.08,169.94,114.495]
[1747592519316,5.8793,170.04,169.94,114.495]
[1747592519524,119.08793573,170.08,169.94,3.955]
[1747592520026,5.8789,170.05,169.96,5.8814]
[1747592520226,119.08793573,170.08,169.96,5.8814]
[1747592520634,119.08793573,170.08,169.94,3.955]
[1747592520926,112.2498,170.08,169.94,3.955]
[1747592521129,112.2498,170.08,169.96,5.8816]
[1747592521526,25.74623038,170.06,169.93,1.9783]
[1747592522029,25.74623038,170.02,169.88,114.4271]
[1747592522222,5.8817,169.97,169.91,5.8832]
[1747592522422,110.24,170.01,169.88,114.4271]
[1747592522722,1.9111,170.0,169.88,114.4271]
[1747592522928,1.9111,170.0,169.88,116.3844]
[1747592523136,1.8585,169.99,169.88,110.5]
[1747592523321,5.8812,169.98,169.88,110.5]
[1747592524129,112.1919,170.01,169.88,110.5]
[1747592524717,112.1919,170.01,169.86,1.9859]
[1747592524923,2.0207,170.0,169.86,112.4859]
[1747592525527,1.8515,169.99,169.86,112.4859]
[1747592525921,2.0207,170.0,169.86,112.4859]
[1747592526126,135.80623038,170.07,169.96,5.8817]
[1747592526529,135.80623038,170.07,169.92,110.5]
[1747592527131,110.02,170.06,169.92,110.5]
[1747592528225,2.0207,170.09,169.92,110.5]
[1747592528428,109.96,170.13,169.92,136.24623038]
[1747592528623,143.08436611,170.15,169.92,136.24623038]
[1747592528822,117.33813573,170.15,170.07,5.8776]
[1747592529024,117.33813573,170.15,170.04,110.5]
[1747592529233,117.33813573,170.15,170.05,3.8977]
[1747592529426,117.33813573,170.15,170.07,5.8778]
[1747592529630,6.83813573,170.15,170.05,3.8977]
[1747592531527,110.5,170.2,170.05,3.8977]
[1747592531723,6.83813573,170.28,170.08,25.74623038]
[1747592532035,6.83813573,170.28,170.09,728.56]
[1747592532330,116.61813573,170.28,170.09,728.56]
[1747592532532,116.61813573,170.28,170.2,5.8732]
[1747592532727,116.61813573,170.28,170.17,110.42]
[1747592533229,6.83813573,170.28,170.17,110.42]
[1747592533428,6.83813573,170.28,170.18,3.8663]
[1747592533829,6.83813573,170.28,170.23,5.8721]
[1747592534031,6.83813573,170.28,170.18,3.8663]
[1747592535635,6.83813573,170.28,170.18,113.4663]
[1747592535935,110.48,170.32,170.18,113.4663]
[1747592536134,5.8703,170.3,170.18,113.4663]
[1747592536528,5.8938,170.33,170.18,113.4663]
[1747592536729,7.06799127,170.33,170.18,113.4663]
[1747592536930,5.8697,170.31,170.18,113.4663]
[1747592537330,110.38,170.32,170.18,113.4663]
[1747592537539,5.8703,170.3,170.23,5.8721]
[1747592537738,110.38,170.32,170.18,3.8663]
[1747592538239,5.8707,170.28,170.18,3.8663]
[1747592538734,110.38,170.32,170.18,3.8663]
[1747592539435,5.8703,170.3,170.18,3.8663]
[1747592539640,110.38,170.32,170.18,3.8663]
[1747592540233,1.17419127,170.33,170.18,3.8663]
[1747592540928,1.17419127,170.33,170.18,114.2063]
[1747592541437,113.2524,170.32,170.18,114.2063]
[1747592541641,110.32,170.31,170.18,114.2063]
[1747592542035,1.17419127,170.33,170.18,114.2063]
[1747592542440,1.17419127,170.33,170.29,5.8702]
[1747592542636,116.1879,170.36,170.29,5.8702]
[1747592542841,116.1879,170.36,170.19,507.58]
[1747592543343,110.32,170.36,170.21,25.74623038]
[1747592543530,110.32,170.36,170.31,5.8693]
[1747592543836,110.32,170.36,170.22,1.8739]
[1747592543837,110.32,170.36,170.24,110.32]
[1747592544035,109.16,170.4,170.34,5.8683]
[1747592544337,109.16,170.4,170.24,110.32]
[1747592545341,25.74623038,170.53,170.31,25.74623038]
[1747592545547,25.74623038,170.53,170.22,1.8739]
[1747592545548,25.74623038,170.49,170.32,223.9842]
[1747592545745,140.71253038,170.5,170.4,5.8662]
[1747592546043,5.8641,170.47,170.33,109.08]
[1747592546244,140.71253038,170.5,170.39,5.8668]
[1747592546245,109.06,170.46,170.39,5.8668]
[1747592546438,109.06,170.46,170.33,109.08]
[1747592547140,114.9248,170.46,170.33,109.08]
[1747592547441,114.9248,170.46,170.39,5.8666]
[1747592547642,109.06,170.46,170.33,109.08]
[1747592548341,5.8658,170.43,170.33,109.08]
[1747592548538,109.06,170.46,170.33,109.08]
[1747592548743,134.80623038,170.46,170.33,109.08]
[1747592548935,134.80623038,170.46,170.28,110.9442]
[1747592549131,134.80623038,170.46,170.28,1.9042]
[1747592549332,5.8669,170.4,170.28,1.9042]
[1747592549552,108.9,170.39,170.34,5.8685]
[1747592549753,114.7669,170.39,170.28,1.9042]
[1747592549938,108.9,170.39,170.28,1.9042]
[1747592551836,108.9,170.39,170.35,5.8682]
[1747592552242,108.76,170.46,170.28,1.9042]
[1747592552743,114.6246,170.46,170.4,5.8665]
[1747592552944,1.9244,170.49,170.34,109.04]
[1747592553243,5.8645,170.47,170.41,5.8661]
[1747592553545,1.9244,170.49,170.35,3.8498]
[1747592553845,5.8647,170.46,170.39,5.8668]
[1747592554045,1.9244,170.49,170.35,3.8498]
[1747592554745,25.74623038,170.46,170.32,109.02]
[1747592554945,5.8659,170.42,170.32,109.02]
[1747592555246,217.68,170.45,170.32,109.02]
[1747592555944,217.68,170.45,170.41,5.8661]
[1747592556550,223.5448,170.45,170.4,5.8665]
[1747592556845,3.9371,170.5,170.34,507.1]
[1747592557051,43.32193038,170.64,170.37,108.56]
[1747592557052,108.56,170.53,170.37,108.56]
[1747592557250,108.54,170.56,170.38,1.9432]
[1747592557648,108.54,170.56,170.48,5.8635]
[1747592558046,108.54,170.56,170.39,3.7882]
[1747592558452,109.0,170.57,170.39,3.7882]
[1747592558767,108.5,170.56,170.39,3.7882]
[1747592558944,5.862,170.54,170.39,3.7882]
[1747592559347,5.8614,170.55,170.39,3.7882]
[1747592559653,109.0,170.57,170.4,25.74623038]
[1747592559951,108.44,170.55,170.41,108.98]
[1747592560448,108.38,170.58,170.5,5.8628]
[1747592560650,108.38,170.58,170.41,108.98]
[1747592561047,5.8611,170.56,170.41,108.98]
[1747592561353,108.36,170.57,170.41,108.98]
[1747592561646,108.34,170.59,170.41,108.98]
[1747592561847,2.0403,170.58,170.41,108.98]
[1747592562550,110.3203,170.58,170.41,108.98]
[1747592563649,5.8608,170.57,170.51,5.8625]
[1747592563848,108.22,170.61,170.47,217.18]
[1747592564151,724.28,170.62,170.48,1.9984]
[1747592564353,5.8596,170.61,170.55,5.8613]
[1747592564552,110.137,170.63,170.49,3.9013]
[1747592565053,108.96,170.65,170.49,3.9013]
[1747592565655,114.8182,170.65,170.58,5.8601]
[1747592566147,114.818,170.65,170.59,5.86]
[1747592566348,108.96,170.65,170.53,108.92]
[1747592566755,5.859,170.62,170.56,5.861]
[1747592567054,5.859,170.62,170.53,108.92]
[1747592567255,5.8586,170.63,170.58,5.8601]
[1747592567453,108.96,170.65,170.53,108.92]
[1747592567957,5.8589,170.63,170.53,108.92]
[1747592568457,5.8588,170.63,170.53,108.92]
[1747592568656,108.96,170.65,170.53,108.92]
[1747592569046,5.8586,170.63,170.53,108.92]
[1747592569246,108.96,170.65,170.53,108.92]
[1747592569655,5.8583,170.64,170.53,108.92]
[1747592571558,5.8587,170.63,170.58,5.8601]
[1747592571857,108.96,170.65,170.58,5.8601]
[1747592572058,108.96,170.65,170.53,108.92]
[1747592572650,108.96,170.65,170.56,5.861]
[1747592572958,108.96,170.65,170.53,108.92]
[1747592573553,108.96,170.65,170.53,216.68]
[1747592574156,1.992,170.68,170.53,232.36538897]
[1747592574350,1.9917,170.7,170.54,506.56]
[1747592574863,23.55719636,170.71,170.57,15.68538897]
[1747592575052,108.88,170.74,170.58,5.7201]
[1747592575250,113.5547,170.75,170.59,216.56]
[1747592575455,512.3425,170.77,170.61,15.68538897]
[1747592575656,5.7825,170.77,170.61,15.68538897]
[1747592576062,5.7825,170.77,170.62,215.3]
[1747592576462,5.7825,170.77,170.64,5.8582]
[1747592576655,15.68538897,170.76,170.6,107.66]
[1747592577056,15.68538897,170.76,170.63,5.8585]
[1747592577256,15.68538897,170.79,170.6,107.66]
[1747592577465,3.7298,170.76,170.6,107.66]
[1747592577765,2.6998991,170.75,170.6,107.66]
[1747592577962,3.7298,170.76,170.6,107.66]
[1747592578357,111.2698,170.76,170.6,123.34538897]
[1747592578560,5.8548,170.75,170.6,123.34538897]
[1747592578759,111.2698,170.76,170.6,123.34538897]
[1747592579063,5.8556,170.72,170.67,5.8569]
[1747592579257,107.62,170.74,170.6,107.66]
[1747592579458,107.62,170.74,170.6,107.62]
[1747592579964,107.62,170.74,170.59,107.46]
[1747592579965,107.62,170.74,170.59,107.62]
[1747592580859,2.69272234,170.73,170.59,107.62]
[1747592581064,107.62,170.74,170.59,107.62]
[1747592581267,107.62,170.74,170.65,5.8576]
[1747592581468,107.62,170.74,170.59,107.62]
[1747592582364,5.8559,170.71,170.67,5.857]
[1747592582564,5.8559,170.71,170.59,107.62]
[1747592582766,107.62,170.74,170.59,107.62]
[1747592584072,107.62,170.74,170.63,5.8586]
[1747592584268,2.69306879,170.73,170.58,113.3201]
[1747592584564,107.62,170.74,170.58,113.3201]
[1747592584766,5.8568,170.69,170.65,5.8579]
[1747592585162,5.8569,170.68,170.64,5.8582]
[1747592585470,5.8569,170.68,170.58,113.3201]
[1747592585663,107.2,170.7,170.58,113.3201]
[1747592586267,5.8579,170.66,170.61,5.8592]
[1747592586469,17.72198897,170.69,170.58,111.4593]
[1747592586659,107.6,170.68,170.58,3.8593]
[1747592587365,5.8574,170.67,170.63,5.8585]
[1747592587572,107.2,170.7,170.58,3.8593]
[1747592587871,107.2,170.7,170.62,5.8587]
[1747592588071,107.2,170.7,170.58,3.8593]
[1747592588375,113.0563,170.7,170.58,3.8593]
[1747592588667,107.2,170.7,170.59,1.9449]
[1747592588872,107.2,170.7,170.6,107.6]
[1747592589174,107.6,170.73,170.6,107.6]
[1747592589562,113.4552,170.73,170.68,5.8567]
[1747592589760,107.6,170.73,170.6,107.6]
[1747592589960,5.8557,170.72,170.67,5.857]
[1747592590175,107.6,170.73,170.6,107.6]
[1747592590474,613.2,170.75,170.6,107.6]
[1747592590665,613.2,170.75,170.71,5.8559]
[1747592590870,106.92,170.77,170.6,123.28538897]
[1747592591174,106.92,170.77,170.65,106.92]
[1747592591375,5.11982481,170.79,170.65,106.92]
[1747592591976,9.70049102,170.79,170.61,107.6]
[1747592592176,15.68538897,170.77,170.61,214.46]
[1747592592378,110.2796848,170.76,170.61,214.46]
[1747592592584,107.58,170.76,170.61,214.46]
[1747592593179,5.8565,170.7,170.61,214.46]
[1747592593380,106.8,170.72,170.61,214.46]
[1747592593575,112.4265,170.72,170.59,1.9449]
[1747592593777,25.48450129,170.69,170.58,3.8593]
[1747592593986,137.6451675,170.69,170.58,3.8593]
[1747592594776,112.16066621,170.69,170.58,3.8593]
[1747592595279,106.72,170.71,170.58,3.8593]
[1747592595687,5.8565,170.7,170.64,5.858]
[1747592595985,5.8565,170.7,170.58,3.8593]
[1747592595986,3037.22,171.07,170.58,3.8593]
[1747592596183,25.48450129,170.82,170.62,106.68]
[1747592596380,3.8309,170.81,170.71,5.8558]
[1747592596585,3.8309,170.81,170.65,107.6]
[1747592596789,5.8534,170.79,170.65,107.6]
[1747592597080,106.66,170.8,170.65,107.6]
[1747592597681,218.0509,170.81,170.65,107.6]
[1747592597877,223.9036,170.81,170.75,5.8542]
[1747592598088,107.6,170.81,170.68,106.6]
[1747592598288,107.6,170.81,170.69,3.8954]
[1747592600090,5.8518,170.83,170.69,3.8954]
[1747592600290,2.7211541,170.82,170.69,3.8954]
[1747592600484,106.6,170.84,170.69,3.8954]
[1747592600485,2.71957251,170.81,170.69,3.8954]
[1747592600792,132.08450129,170.84,170.69,111.4754]
[1747592600993,4.6307916,170.83,170.74,5.8547]
[1747592601191,4.6307916,170.83,170.69,3.8954]
[1747592601696,25.48450129,170.8,170.67,107.58]
[1747592601886,110.28237076,170.79,170.61,3.8809]
[1747592602086,25.48450129,170.76,170.61,111.4409]
[1747592602287,2.72237076,170.75,170.61,111.4409]
[1747592602492,108.3875,170.78,170.61,111.4409]
[1747592602791,5.8548,170.75,170.61,111.4409]
[1747592603192,2.72246526,170.74,170.61,111.4409]
[1747592603398,2.72460582,170.73,170.61,111.4409]
[1747592603693,114.90012048,170.72,170.67,5.8572]
[1747592603892,106.32,170.72,170.61,111.4409]
[1747592604285,2.72695286,170.71,170.61,111.4409]
[1747592604486,2.7273815,170.7,170.61,111.4409]
[1747592604686,106.32,170.72,170.61,111.4409]
[1747592604891,2.72738055,170.71,170.61,111.4409]
[1747592605092,2.72740069,170.7,170.61,111.4409]
[1747592605293,112.1755,170.72,170.67,5.8569]
[1747592605493,2.73018332,170.71,170.61,111.4409]
[1747592605684,2.73018332,170.7,170.67,5.8571]
[1747592606200,112.1759,170.72,170.68,5.8569]
[1747592606399,2.73311894,170.71,170.68,5.8569]
[1747592606591,112.1759,170.72,170.59,106.24]
[1747592606592,2.73311894,170.7,170.59,106.24]
[1747592606792,27.37490129,170.73,170.59,3.9307]
[1747592607005,106.18,170.72,170.59,3.9307]
[1747592607309,5.8561,170.71,170.59,3.9307]
[1747592607496,106.18,170.72,170.56,506.04]
[1747592607698,1.8648,170.7,170.56,506.04]
[1747592607902,5.857,170.68,170.62,5.8587]
[1747592608106,4.6307916,170.69,170.62,5.8587]
[1747592608406,5.858,170.65,170.6,5.8595]
[1747592608899,5.858,170.65,170.61,5.8593]
[1747592609098,4.6307916,170.69,170.56,506.04]
[1747592610008,5.8575,170.67,170.56,506.04]
[1747592610199,4.6307916,170.69,170.56,506.04]
[1747592610500,5.8577,170.66,170.62,5.8589]
[1747592610705,4.6307916,170.69,170.56,506.04]
[1747592611709,5.8576,170.66,170.56,506.04]
[1747592611909,1.8648,170.7,170.56,506.04]
[1747592612208,1.8648,170.7,170.66,5.8576]
[1747592612405,5.22302797,170.71,170.56,531.52450129]
[1747592612596,5.22302797,170.71,170.57,212.2]
[1747592612802,5.22302797,170.71,170.6,25.48450129]
[1747592612998,5.22302797,170.71,170.61,1.8424]
[1747592613204,5.22302797,170.71,170.62,3.8683]
[1747592613403,5.22302797,170.71,170.69,5.8563]
[1747592613603,4.65404275,170.72,170.63,106.24]
[1747592613905,4.65404275,170.72,170.7,5.8559]
[1747592614409,4.65404275,170.72,170.63,106.24]
[1747592615009,106.24,170.73,170.63,106.24]
[1747592615211,5.22302797,170.76,170.63,212.06]
[1747592615405,5.22302797,170.76,170.63,227.72314981]
[1747592616004,5.22302797,170.76,170.75,5.8545]
[1747592617006,2.797e-05,170.76,170.75,5.8545]
[1747592617604,4.65670524,170.81,170.71,3.9187]
[1747592617910,4.65670524,170.81,170.71,19.58184981]
[1747592618103,4.65670524,170.81,170.8,5.8528]
[1747592618811,5.24219023,170.84,170.81,5.8522]
[1747592619014,5.24219023,170.84,170.75,106.24]
[1747592619508,5.24219023,170.84,170.82,5.8518]
[1747592619715,5.24219023,170.84,170.75,106.24]
[1747592619914,5.24219023,170.84,170.73,106.2]
[1747592620415,5.24219023,170.84,170.72,106.2]
[1747592620617,109.51037275,170.87,170.72,106.2]
[1747592620913,2.66875874,170.86,170.72,106.2]
[1747592621115,2.66875874,170.85,170.72,106.2]
[1747592621317,5.8528,170.8,170.71,3.9187]
[1747592621510,15.66314981,170.86,170.74,5.8548]
[1747592621815,105.5,170.81,170.71,3.9187]
[1747592622003,109.45037275,170.87,170.75,5.8542]